fUST/lending_fUST_20250519
["ID","MTS","AMOUNT","RATE_DAILY","PERIOD"]
[361651569,1747666242047,-500.0,0.00023835,4]
[361651570,1747666242058,-400.0,0.00023835,4]
[361651571,1747666242068,-430.0,0.00023835,4]
[361651572,1747666242078,-430.0,0.00023835,4]
[361651573,1747666242088,-430.0,0.00023835,4]
[361651574,1747666242098,-400.0,0.00023835,4]
[361651575,1747666242109,-400.0,0.00023835,4]
[361651576,1747666242118,-400.0,0.00023835,4]
[361651577,1747666242128,-430.0,0.00023835,4]
[361651578,1747666242138,-430.0,0.00023835,4]
[361651579,1747666242148,-430.0,0.00023835,4]
[361651580,1747666242157,-240.90874238,0.00023835,4]
[361651581,1747666242167,-500.0,0.00023835,4]
[361651582,1747666242177,-500.0,0.00023835,4]
[361651583,1747666242187,-500.0,0.00023835,4]
[361651584,1747666242197,-500.0,0.00023835,4]
[361651585,1747666242207,-430.0,0.00023835,4]
[361651586,1747666242216,-500.0,0.00023835,4]
[361651587,1747666242226,-400.0,0.00023835,4]
[361651588,1747666242237,-500.0,0.00023835,4]
[361651589,1747666242247,-500.0,0.00023835,4]
[361651590,1747666242257,-500.0,0.00023835,4]
[361651591,1747666242267,-500.0,0.00023835,4]
[361651592,1747666242277,-179.03081135,0.00023835,4]
[361651593,1747666242288,-400.0,0.00023835,4]
[361651594,1747666242298,-500.0,0.00023835,4]
[361651595,1747666242307,-430.0,0.00023835,4]
[361651596,1747666242319,-500.0,0.00023835,4]
[361651597,1747666242329,-430.0,0.00023835,4]
[361651598,1747666242338,-500.0,0.00023835,4]
[361651599,1747666242348,-400.0,0.00023835,4]
[361651600,1747666242357,-216.67981002,0.00023835,4]
[361651601,1747666242367,-408.09044017,0.00023835,4]
[361651602,1747666242376,-400.0,0.00023835,4]
[361651603,1747666242386,-430.0,0.00023835,4]
[361651604,1747666242395,-450.0,0.00023835,4]
[361651605,1747666242405,-400.0,0.00023835,4]
[361651606,1747666242415,-500.0,0.00023835,4]
[361651607,1747666242424,-430.0,0.00023835,4]
[361651608,1747666242434,-400.0,0.00023835,4]
[361651609,1747666242443,-500.0,0.00023835,4]
[361651610,1747666242453,-430.0,0.00023835,4]
[361651611,1747666242462,-430.0,0.00023835,4]
[361651612,1747666242471,-430.0,0.00023835,4]
[361651613,1747666242481,-506.15363087,0.00023835,4]
[361651614,1747666242490,-500.0,0.00023835,4]
[361651615,1747666242500,-522.75144952,0.00023835,4]
[361651616,1747666242509,-400.0,0.00023835,4]
[361651617,1747666242519,-450.0,0.00023835,4]
[361651618,1747666242528,-400.0,0.00023835,4]
[361651619,1747666242538,-501.77666421,0.00023835,4]
[361651620,1747666242547,-504.7994108,0.00023835,4]
[361651621,1747666242557,-430.0,0.00023835,4]
[361651622,1747666242566,-479.59268791,0.00023835,4]
[361651623,1747666242575,-507.98153235,0.00023835,4]
[361651624,1747666242585,-400.0,0.00023835,4]
[361651625,1747666242594,-400.0,0.00023835,4]
[361651626,1747666242604,-400.0,0.00023835,4]
[361651627,1747666242614,-400.0,0.00023835,4]
[361651628,1747666242623,-430.0,0.00023835,4]
[361651629,1747666242633,-400.0,0.00023835,4]
[361651630,1747666242642,-479.85,0.00023835,4]
[361651631,1747666242652,-400.0,0.00023835,4]
[361651632,1747666242661,-430.0,0.00023835,4]
[361651633,1747666242671,-400.0,0.00023835,4]
[361651634,1747666242680,-430.0,0.00023835,2]
[361651635,1747666242824,-514.39836032,0.00023835,4]
[361651636,1747666242836,-430.0,0.00023835,4]
[361651637,1747666242847,-400.0,0.00023835,4]
[361651638,1747666242857,-430.0,0.00023835,4]
[361651639,1747666242867,-500.0,0.00023835,4]
[361651640,1747666242876,-430.0,0.00023835,4]
[361651641,1747666242886,-504.09797591,0.00023835,4]
[361651642,1747666242896,-400.0,0.00023835,4]
[361651643,1747666242905,-400.0,0.00023835,4]
[361651644,1747666242914,-430.0,0.00023835,4]
[361651645,1747666242924,-400.0,0.00023835,4]
[361651646,1747666242934,-400.0,0.00023835,4]
[361651647,1747666242943,-310.49352626,0.00023835,4]
[361651648,1747666242954,-400.0,0.00023835,4]
[361651649,1747666242964,-430.0,0.00023835,4]
[361651650,1747666242974,-400.0,0.00023835,4]
[361651651,1747666242983,-400.0,0.00023835,4]
[361651652,1747666242993,-400.0,0.00023835,4]
[361651653,1747666243002,-430.0,0.00023835,4]
[361651654,1747666243013,-401.15484059,0.00023835,4]
[361651655,1747666243023,-430.0,0.00023835,4]
[361651656,1747666243033,-400.0,0.00023835,4]
[361651657,1747666243043,-400.0,0.00023835,4]
[361651658,1747666243054,-400.0,0.00023835,4]
[361651659,1747666243065,-430.0,0.00023835,4]
[361651660,1747666243077,-510.03668428,0.00023835,4]
[361651662,1747666243088,-500.0,0.00023835,4]
[361651665,1747666243099,-430.0,0.00023835,4]
[361651668,1747666243110,-210.96226806,0.00023835,4]
[361651670,1747666243121,-430.0,0.00023835,4]
[361651672,1747666243131,-495.1144221,0.00023835,4]
[361651674,1747666243142,-430.0,0.00023835,4]
[361651676,1747666243153,-430.0,0.00023835,4]
[361651678,1747666243163,-1000.0,0.00023835,4]
[361651680,1747666243173,-430.0,0.00023835,4]
[361651682,1747666243183,-430.0,0.00023835,4]
[361651683,1747666243192,-430.0,0.00023835,4]
[361651684,1747666243204,-400.0,0.00023835,4]
[361651685,1747666243214,-430.0,0.00023835,4]
[361651686,1747666243223,-400.0,0.00023835,4]
[361651687,1747666243233,-430.0,0.00023835,4]
[361651688,1747666243242,-400.0,0.00023835,4]
[361651691,1747666243252,-500.0,0.00023835,4]
[361651692,1747666243261,-430.0,0.00023835,4]
[361651693,1747666243271,-430.0,0.00023835,4]
[361651694,1747666243280,-500.0,0.00023835,4]
[361651695,1747666243290,-500.0,0.00023835,4]
[361651696,1747666243300,-400.0,0.00023835,4]
[361651697,1747666243309,-658.51,0.00023835,4]
[361651698,1747666243319,-508.37697616,0.00023835,4]
[361651699,1747666243329,-430.0,0.00023835,4]
[361651700,1747666243338,-400.0,0.00023835,4]
[361651701,1747666243347,-400.0,0.00023835,4]
[361651703,1747666243356,-501.65230332,0.00023835,4]
[361651704,1747666243365,-500.0,0.00023835,4]
[361651705,1747666243374,-430.0,0.00023835,4]
[361651706,1747666243384,-500.0,0.00023835,4]
[361651707,1747666243393,-430.0,0.00023835,4]
[361651708,1747666243402,-1828.36,0.00023835,4]
[361651709,1747666243411,-500.0,0.00023835,4]
[361651710,1747666243421,-430.0,0.00023835,4]
[361651711,1747666243431,-502.96567269,0.00023835,4]
[361651712,1747666243440,-400.0,0.00023835,4]
[361651713,1747666243451,-430.0,0.00023835,4]
[361651714,1747666243461,-400.0,0.00023835,4]
[361651715,1747666243471,-400.0,0.00023835,4]
[361651717,1747666243481,-430.0,0.00023835,4]
[361651719,1747666243490,-442.38670019,0.00023835,4]
[361651721,1747666243500,-400.0,0.00023835,4]
[361651723,1747666243510,-500.0,0.00023835,4]
[361651724,1747666243519,-345.78991407,0.00023835,4]
[361651725,1747666243538,-84.21008593,0.00023835,4]
[361651726,1747666243547,-460.45834526,0.00023835,4]
[361651727,1747666243559,-39.54165474,0.00023835,4]
[361651728,1747666243568,-400.0,0.00023835,4]
[361651729,1747666243578,-430.0,0.00023835,4]
[361651730,1747666243587,-400.0,0.00023835,4]
[361651732,1747666243596,-233.16320058,0.00023835,4]
[361651734,1747666243608,-176.68038028,0.00023835,4]
[361651735,1747666243618,-423.38782685,0.00023835,4]
[361651742,1747666243862,-6.61217315,0.00023835,4]
[361651743,1747666243873,-235.68202355,0.00023835,4]
[361651744,1747666243883,-526.70631053,0.00023835,4]
[361651745,1747666243892,-400.0,0.00023835,4]
[361651746,1747666243902,-400.0,0.00023835,4]
[361651747,1747666243911,-400.0,0.00023835,4]
[361651748,1747666243922,-400.0,0.00023835,4]
[361651749,1747666243932,-400.0,0.00023835,4]
[361651750,1747666243942,-400.0,0.00023835,4]
[361651751,1747666243954,-505.19891667,0.00023835,4]
[361651752,1747666243964,-430.0,0.00023835,4]
[361651753,1747666243973,-400.0,0.00023835,4]
[361651754,1747666243983,-500.0,0.00023835,4]
[361651755,1747666243994,-400.0,0.00023835,4]
[361651756,1747666244003,-430.0,0.00023835,4]
[361651757,1747666244012,-433.88,0.00023835,4]
[361651758,1747666244022,-400.0,0.00023835,4]
[361651759,1747666244031,-465.98367526,0.00023835,4]
[361651760,1747666244041,-430.0,0.00023835,4]
[361651761,1747666244050,-400.0,0.00023835,4]
[361651762,1747666244060,-422.44454389,0.00023835,4]
[361651763,1747666244070,-510.98,0.00023835,4]
[361651764,1747666244079,-1394.28,0.00023835,4]
[361651765,1747666244089,-500.0,0.00023835,4]
[361651766,1747666244099,-400.0,0.00023835,4]
[361651767,1747666244108,-433.6,0.00023835,4]
[361651768,1747666244118,-575.92,0.00023835,4]
[361651769,1747666244128,-400.0,0.00023835,4]
[361651770,1747666244138,-400.0,0.00023835,4]
[361651771,1747666244147,-430.0,0.00023835,4]
[361651772,1747666244157,-1006.47,0.00023835,4]
[361651773,1747666244167,-400.0,0.00023835,4]
[361651774,1747666244177,-400.0,0.00023835,4]
[361651775,1747666244186,-430.0,0.00023835,4]
[361651776,1747666244196,-400.0,0.00023835,4]
[361651777,1747666244207,-430.0,0.00023835,4]
[361651778,1747666244217,-400.0,0.00023835,4]
[361651779,1747666244227,-299.44363022,0.00023835,4]
[361651780,1747666244341,-100.55636978,0.00023835,4]
[361651781,1747666244350,-400.0,0.00023835,4]
[361651782,1747666244360,-400.0,0.00023835,4]
[361651783,1747666244371,-430.0,0.00023835,4]
[361651784,1747666244380,-400.0,0.00023835,4]
[361651785,1747666244391,-430.0,0.00023835,4]
[361651786,1747666244401,-400.0,0.00023835,4]
[361651787,1747666244411,-430.0,0.00023835,4]
[361651788,1747666244421,-400.0,0.00023835,4]
[361651789,1747666244430,-400.0,0.00023835,4]
[361651790,1747666244439,-430.0,0.00023835,4]
[361651791,1747666244449,-430.0,0.00023835,4]
[361651792,1747666244459,-430.0,0.00023835,4]
[361651793,1747666244469,-400.0,0.00023835,4]
[361651794,1747666244478,-400.0,0.00023835,4]
[361651795,1747666244487,-500.0,0.00023835,4]
[361651796,1747666244496,-18.79794738,0.00023835,4]
[361651802,1747666246605,-481.20205262,0.00023835,4]
[361651803,1747666246615,-500.0,0.00023835,4]
[361651804,1747666246625,-430.0,0.00023835,4]
[361651805,1747666246635,-430.0,0.00023835,4]
[361651806,1747666246645,-400.0,0.00023835,4]
[361651807,1747666246654,-616.68,0.00023835,4]
[361651808,1747666246664,-430.0,0.00023835,4]
[361651809,1747666246673,-430.0,0.00023835,4]
[361651810,1747666246682,-622.32,0.00023835,4]
[361651811,1747666246692,-500.0,0.00023835,4]
[361651812,1747666246702,-430.0,0.00023835,4]
[361651813,1747666246714,-400.0,0.00023835,4]
[361651814,1747666246724,-400.0,0.00023835,4]
[361651815,1747666246733,-400.0,0.00023835,4]
[361651816,1747666246743,-430.0,0.00023835,4]
[361651817,1747666246753,-510.42,0.00023835,4]
[361651818,1747666246764,-430.0,0.00023835,4]
[361651819,1747666246774,-244.21757437,0.00023835,4]
[361651856,1747666276734,500.0,0.00023899,120]
[361651857,1747666277500,500.0,0.00023899,120]
[361651858,1747666278269,500.0,0.00023899,120]
[361651859,1747666279028,500.0,0.00023899,120]
[361651860,1747666279813,500.0,0.00023899,120]
[361651861,1747666280574,500.0,0.00023899,120]
[361651862,1747666281346,500.0,0.00023899,120]
[361651863,1747666282118,500.0,0.00023899,120]
[361651864,1747666282892,500.0,0.00023899,120]
[361651865,1747666284095,500.0,0.00023899,120]
[361651866,1747666284952,500.0,0.00023899,120]
[361651867,1747666286477,500.0,0.00023899,120]
[361651868,1747666287287,500.0,0.00023899,120]
[361651869,1747666288063,500.0,0.00023899,120]
[361651870,1747666288836,500.0,0.00023899,120]
[361651871,1747666289613,500.0,0.00023899,120]
[361651872,1747666290392,500.0,0.00023899,120]
[361651873,1747666291163,500.0,0.00023899,120]
[361651874,1747666291972,500.0,0.00023899,120]
[361651875,1747666292734,500.0,0.00023899,120]
[361651876,1747666293522,500.0,0.00023899,120]
[361651877,1747666294297,500.0,0.00023899,120]
[361651878,1747666295066,500.0,0.00023899,120]
[361651879,1747666295824,500.0,0.00023899,120]
[361651880,1747666296615,500.0,0.00023899,120]
[361651881,1747666297391,500.0,0.00023899,120]
[361651882,1747666298151,500.0,0.00023899,120]
[361651883,1747666302855,500.0,0.00023899,120]
[361651884,1747666303687,500.0,0.00023899,120]
[361651885,1747666304478,500.0,0.00023899,120]
[361651886,1747666305285,500.0,0.00023899,120]
[361651887,1747666306072,500.0,0.00023899,120]
[361651888,1747666306829,500.0,0.00023899,120]
[361651889,1747666307594,304.1,0.00023899,120]
[361652067,1747666368714,2000.0,0.00024805,30]
[361652068,1747666369350,2000.0,0.00024805,30]
[361652069,1747666370051,2000.0,0.00024805,30]
[361652070,1747666371044,2000.0,0.00024805,30]
[361652071,1747666371611,2000.0,0.00024805,30]
[361652072,1747666372166,477.799999,0.00024805,30]
[361652073,1747666373021,500.0,0.00023899,120]
[361652080,1747666441293,150.0,0.00024805,31]
[361652081,1747666441605,279.0,0.00024805,31]
[361652082,1747666441994,559.0,0.00024805,31]
[361652083,1747666442353,1118.0,0.00024805,31]
[361652084,1747666443145,1412.0,0.00024805,31]
[361652085,1747666443525,2176.0,0.00024805,31]
[361652086,1747666443913,2236.0,0.00024805,31]
[361652087,1747666444314,3454.0,0.00024805,31]
[361652092,1747666448779,150.0,0.00024805,31]
[361652093,1747666449105,273.0,0.00024805,31]
[361652094,1747666449459,547.0,0.00024805,31]
[361652095,1747666449800,1094.0,0.00024805,31]
[361652096,1747666450200,1381.0,0.00024805,31]
[361652097,1747666450683,2129.0,0.00024805,31]
[361652098,1747666451014,2187.0,0.00024805,31]
[361652100,1747666451383,3379.0,0.00024805,31]
[361652101,1747666453132,161.0,0.00024805,31]
[361652199,1747666844003,236.503964,0.00027397,120]
[361652211,1747666969382,522.199999,0.00024985,30]
[361652213,1747666991836,1000.0,0.00027,120]
[361652306,1747667293750,500.0,0.00024985,30]
[361652351,1747667431985,-5000.0,0.00013426,2]
[361652354,1747667431995,-170.091937,0.00013699,2]
[361652355,1747667432005,-1200.0,0.00015073,2]
[361652357,1747667432014,-3091.5916731,0.00015074,2]
[361652358,1747667432025,-1668.7014499,0.00015195,2]
[361652359,1747667432034,-300.0,0.00015215,2]
[361652360,1747667432044,-2291.676723,0.00015216,2]
[361652361,1747667432055,-250.0,0.00015366,2]
[361652362,1747667432066,-200.0,0.00015619,2]
[361652363,1747667432076,-8577.18398317,0.000159,2]
[361652364,1747667432086,-8577.18398304,0.0001621,2]
[361652365,1747667432095,-8577.18398304,0.00016521,2]
[361652366,1747667432104,-318.06455631,0.00016579,2]
[361652367,1747667432282,-745.93544369,0.00016579,2]
[361652368,1747667432293,-420.0,0.00016649,2]
[361652369,1747667432303,-8577.18398304,0.00016831,2]
[361652370,1747667432313,-152.0,0.00016998,2]
[361652371,1747667432322,-200.0,0.00017039,2]
[361652372,1747667432332,-8577.18398304,0.00017141,2]
[361652373,1747667432342,-512.88946097,0.00017349,2]
[361652374,1747667432351,-50000.0,0.0001745,2]
[361652375,1747667432360,-500.0,0.0001745,2]
[361652376,1747667432371,-500.0,0.0001745,2]
[361652377,1747667432380,-500.0,0.0001745,2]
[361652378,1747667432389,-297.7388577,0.0001745,2]
[361652379,1747667432398,-500.0,0.0001745,2]
[361652380,1747667432407,-500.0,0.0001745,2]
[361652381,1747667432417,-490.71179052,0.0001745,2]
[361652382,1747667432426,-500.0,0.0001745,2]
[361652383,1747667432435,-276.97385942,0.0001745,2]
[361652384,1747667432445,-500.0,0.0001745,2]
[361652385,1747667432454,-500.0,0.0001745,2]
[361652386,1747667432464,-500.0,0.0001745,2]
[361652387,1747667432473,-500.0,0.0001745,2]
[361652388,1747667432482,-500.0,0.0001745,2]
[361652389,1747667432491,-500.0,0.0001745,2]
[361652390,1747667432500,-500.0,0.0001745,2]
[361652391,1747667432510,-500.0,0.0001745,2]
[361652392,1747667432519,-500.0,0.0001745,2]
[361652393,1747667432528,-500.0,0.0001745,2]
[361652394,1747667432537,-500.0,0.0001745,2]
[361652395,1747667432546,-500.0,0.0001745,2]
[361652396,1747667432555,-500.0,0.0001745,2]
[361652397,1747667432565,-500.0,0.0001745,2]
[361652398,1747667432574,-500.0,0.0001745,2]
[361652399,1747667432583,-500.0,0.0001745,2]
[361652400,1747667432593,-500.0,0.0001745,2]
[361652401,1747667432602,-500.0,0.0001745,2]
[361652402,1747667432611,-500.0,0.0001745,2]
[361652403,1747667432620,-500.0,0.0001745,2]
[361652404,1747667432629,-500.0,0.0001745,2]
[361652405,1747667432638,-500.0,0.0001745,2]
[361652406,1747667432647,-500.0,0.0001745,2]
[361652407,1747667432657,-500.0,0.0001745,2]
[361652408,1747667432666,-500.0,0.0001745,2]
[361652409,1747667432677,-500.0,0.0001745,2]
[361652410,1747667432687,-500.0,0.0001745,2]
[361652411,1747667432696,-500.0,0.0001745,2]
[361652412,1747667432706,-500.0,0.0001745,2]
[361652413,1747667432717,-500.0,0.0001745,2]
[361652414,1747667432727,-500.0,0.0001745,2]
[361652415,1747667432739,-500.0,0.0001745,2]
[361652416,1747667432748,-500.0,0.0001745,2]
[361652417,1747667432757,-500.0,0.0001745,2]
[361652418,1747667432768,-200.0,0.0001745,2]
[361652419,1747667432778,-500.0,0.0001745,2]
[361652420,1747667432788,-500.0,0.0001745,2]
[361652421,1747667432798,-500.0,0.0001745,2]
[361652422,1747667432807,-639.7601499,0.0001745,2]
[361652423,1747667432817,-500.0,0.0001745,2]
[361652424,1747667432827,-500.0,0.0001745,2]
[361652425,1747667432836,-323.02240524,0.0001745,2]
[361652426,1747667432845,-500.0,0.0001745,2]
[361652427,1747667432854,-500.0,0.0001745,2]
[361652428,1747667432874,-500.0,0.0001745,2]
[361652429,1747667432883,-500.0,0.0001745,2]
[361652430,1747667432893,-500.0,0.0001745,2]
[361652431,1747667432902,-500.0,0.0001745,2]
[361652432,1747667432912,-500.0,0.0001745,2]
[361652433,1747667432921,-500.0,0.0001745,2]
[361652434,1747667432931,-500.0,0.0001745,2]
[361652435,1747667432940,-500.0,0.0001745,2]
[361652436,1747667432949,-500.0,0.0001745,2]
[361652437,1747667432959,-500.0,0.0001745,2]
[361652438,1747667432968,-500.0,0.0001745,2]
[361652439,1747667432978,-500.0,0.0001745,2]
[361652440,1747667432989,-500.0,0.0001745,2]
[361652441,1747667432998,-500.0,0.0001745,2]
[361652442,1747667433007,-500.0,0.0001745,2]
[361652443,1747667433016,-500.0,0.0001745,2]
[361652444,1747667433026,-500.0,0.0001745,2]
[361652445,1747667433036,-500.0,0.0001745,2]
[361652446,1747667433045,-500.0,0.0001745,2]
[361652447,1747667433055,-500.0,0.0001745,2]
[361652448,1747667433064,-500.0,0.0001745,2]
[361652449,1747667433074,-500.0,0.0001745,2]
[361652450,1747667433084,-500.0,0.0001745,2]
[361652451,1747667433094,-500.0,0.0001745,2]
[361652452,1747667433104,-500.0,0.0001745,2]
[361652453,1747667433113,-500.0,0.0001745,2]
[361652454,1747667433123,-500.0,0.0001745,2]
[361652455,1747667433133,-500.0,0.0001745,2]
[361652456,1747667433146,-500.0,0.0001745,2]
[361652457,1747667433156,-500.0,0.0001745,2]
[361652458,1747667433166,-500.0,0.0001745,2]
[361652459,1747667433176,-500.0,0.0001745,2]
[361652460,1747667433186,-500.0,0.0001745,2]
[361652461,1747667433196,-500.0,0.0001745,2]
[361652462,1747667433206,-500.0,0.0001745,2]
[361652463,1747667433217,-274.11230821,0.0001745,2]
[361652464,1747667433227,-500.0,0.0001745,2]
[361652465,1747667433237,-500.0,0.0001745,2]
[361652466,1747667433247,-500.0,0.0001745,2]
[361652467,1747667433257,-500.0,0.0001745,2]
[361652468,1747667433267,-500.0,0.0001745,2]
[361652469,1747667433277,-500.0,0.0001745,2]
[361652470,1747667433430,-227.41123082,0.0001745,2]
[361652471,1747667433440,-500.0,0.0001745,2]
[361652472,1747667433450,-500.0,0.0001745,2]
[361652473,1747667433460,-500.0,0.0001745,2]
[361652474,1747667433469,-500.0,0.0001745,2]
[361652475,1747667433479,-500.0,0.00017451,2]
[361652476,1747667433490,-8577.18398304,0.00017452,2]
[361652477,1747667433499,-250.0,0.000176,2]
[361652478,1747667433509,-500.0,0.00017725,2]
[361652479,1747667433518,-8577.18398304,0.00017762,2]
[361652480,1747667433527,-300.0,0.00017803,2]
[361652481,1747667433536,-5000.0,0.00017804,2]
[361652482,1747667433546,-155.58897976,0.0001795,7]
[361652483,1747667433555,-153.08828027,0.00017951,7]
[361652484,1747667433564,-512.88946097,0.00017962,2]
[361652485,1747667433574,-500.0,0.00017999,2]
[361652486,1747667433583,-8577.18398304,0.00018072,2]
[361652487,1747667433592,-1839.4138615,0.00018173,2]
[361652488,1747667433602,-587.0,0.00018217,2]
[361652489,1747667433611,-500.0,0.00018273,2]
[361652490,1747667433621,-8577.18398304,0.00018383,2]
[361652491,1747667433631,-910.488884,0.0001844,2]
[361652492,1747667433641,-200.0,0.0001846,2]
[361652493,1747667433650,-500.0,0.00018533,2]
[361652494,1747667433660,-496.29590941,0.00018533,2]
[361652495,1747667433671,-234.40229357,0.00018533,2]
[361652496,1747667433680,-500.0,0.00018533,2]
[361652497,1747667433690,-500.0,0.00018533,2]
[361652498,1747667433700,-258.24463679,0.00018533,2]
[361652499,1747667433709,-500.0,0.00018533,2]
[361652500,1747667433718,-500.0,0.00018547,2]
[361652501,1747667433728,-1023.1458726,0.00018568,2]
[361652502,1747667433738,-512.88946097,0.00018575,2]
[361652503,1747667433748,-500.0,0.00018675,2]
[361652504,1747667433758,-500.0,0.00018675,2]
[361652505,1747667433768,-500.25317607,0.00018675,2]
[361652506,1747667433778,-500.0,0.00018675,2]
[361652507,1747667433788,-500.0,0.00018675,2]
[361652508,1747667433798,-500.0,0.00018675,2]
[361652509,1747667433807,-500.0,0.00018675,2]
[361652510,1747667433817,-500.0,0.00018675,2]
[361652511,1747667433827,-500.0,0.00018675,2]
[361652512,1747667433836,-500.0,0.00018675,2]
[361652513,1747667433846,-345.76469398,0.00018675,2]
[361652514,1747667433855,-8577.18398304,0.00018693,2]
[361652515,1747667433865,-936.54261826,0.00018734,2]
[361652516,1747667433878,-500.0,0.00018821,2]
[361652517,1747667433888,-8577.18398304,0.00019003,2]
[361652518,1747667433897,-500.0,0.0001905,2]
[361652519,1747667433907,-500.0,0.0001905,2]
[361652520,1747667433917,-500.0,0.0001905,2]
[361652521,1747667433927,-500.0,0.0001905,2]
[361652522,1747667433936,-500.0,0.0001905,2]
[361652523,1747667433946,-446.83681563,0.0001905,2]
[361652524,1747667433956,-500.0,0.0001905,2]
[361652525,1747667433965,-500.0,0.0001905,2]
[361652526,1747667433975,-500.0,0.0001905,2]
[361652527,1747667433987,-500.0,0.0001905,2]
[361652528,1747667433996,-706.20125334,0.00019081,2]
[361652529,1747667434006,-1000.0,0.00019081,2]
[361652530,1747667434016,-1000.0,0.00019081,2]
[361652531,1747667434026,-166.89828833,0.00019081,2]
[361652532,1747667434036,-514.2612756,0.00019095,2]
[361652533,1747667434046,-1839.41386146,0.00019099,2]
[361652534,1747667434056,-155.0,0.00019178,2]
[361652535,1747667434066,-214.464918,0.00019178,2]
[361652536,1747667434076,-1018.33023863,0.00019223,2]
[361652537,1747667434086,-1000.0,0.00019223,2]
[361652538,1747667434096,-1000.0,0.00019223,2]
[361652539,1747667434106,-1000.0,0.00019223,2]
[361652540,1747667434115,-1000.0,0.00019223,2]
[361652541,1747667434125,-1000.0,0.00019223,2]
[361652542,1747667434135,-1000.0,0.00019223,2]
[361652543,1747667434149,-1000.0,0.00019223,2]
[361652544,1747667434159,-1000.0,0.00019223,2]
[361652545,1747667434168,-500.0,0.00019267,2]
[361652546,1747667434178,-500.0,0.00019267,2]
[361652547,1747667434189,-327.76580098,0.00019267,2]
[361652548,1747667434199,-500.0,0.00019267,2]
[361652549,1747667434209,-4257.24678869,0.00019314,2]
[361652569,1747667440027,-3297.1126014,0.00017275,2]
[361652620,1747667446616,-1702.8873986,0.00017275,2]
[361652621,1747667446626,-4319.93719435,0.00019314,2]
[361652622,1747667446636,-300.0,0.00019597,2]
[361652623,1747667446646,-1000.0,0.00019598,2]
[361652624,1747667446656,-1000.0,0.00019598,2]
[361652625,1747667446667,-1000.0,0.00019598,2]
[361652626,1747667446676,-715.53954383,0.00019598,2]
[361652627,1747667446688,-1000.0,0.00019598,2]
[361652628,1747667446697,-500.0,0.00019598,2]
[361652629,1747667446708,-1135.29282975,0.00019598,2]
[361652630,1747667446717,-1000.0,0.00019598,2]
[361652631,1747667446726,-1000.0,0.00019598,2]
[361652632,1747667446736,-8577.18398304,0.00019624,2]
[361652633,1747667446747,-1500.0,0.00019629,2]
[361652635,1747667446756,-1500.0,0.00019629,2]
[361652636,1747667446766,-1029.84379173,0.00019771,2]
[361652637,1747667446775,-1500.0,0.00019771,2]
[361652638,1747667446785,-1500.0,0.00019771,2]
[361652639,1747667446794,-1500.0,0.00019771,2]
[361652640,1747667446803,-1500.0,0.00019771,2]
[361652641,1747667446813,-1500.0,0.00019771,2]
[361652642,1747667446822,-1500.0,0.00019771,2]